[Event "1000GM Spring IM-C 2024"]
[Site "New York"]
[Date "2024.03.29"]
[Round "4.4"]
[White "Yang, Qindong"]
[Black "Shundi, Matias"]
[Result "1/2-1/2"]
[ECO "A04"]
[WhiteElo "2234"]
[BlackElo "2191"]
[Annotator "RC"]
[PlyCount "81"]
[EventDate "2024.03.26"]
[EventType "tourn"]
[EventCountry "USA"]
[SourceTitle "playchess.com"]
[Source "ChessBase"]
[SourceQuality "1"]
[TimeControl "5400+30"]

1. c4 {[%emt 0:00:07]} g6 {[%emt 1:31:00]} 2. g3 {[%emt 0:00:59]} c5 {[%emt 0:00:00]} 3. Bg2 {[%emt 0:00:17]} Bg7 {[%emt 0:00:00]} 4. Nc3 {[%emt 0:00:54]} Nc6 {[%emt 0:00:00]} 5. Nf3 {[%emt 0:00:26]} e6 {[%emt 0:00:00]} 6. d4 {[%emt 0:01:00]} cxd4 {[%emt 0:00:00]} 7. Nb5 {[%emt 0:00:13]} d5 {[%emt 0:00:00]} 8. cxd5 {[%emt 0:00:38]} exd5 {[%emt 0:00:00]} 9. O-O {[%emt 0:00:39]} Nf6 {[%emt 0:00:00]} 10. Nbxd4 {[%emt 0:00:36]} O-O {[%emt 0:00:00]} 11. b3 {[%emt 1:30:11]} Ne4 {[%emt 0:00:00]} 12. Bb2 {[%emt 0:00:00]} Qb6 {[%emt 0:00:00]} 13. Rb1 {[%emt 0:00:00]} Re8 {[%emt 0:00:00]} 14. e3 {[%emt 0:00:00]} Bg4 {[%emt 0:06:30]} 15. Nxc6 {[%emt 0:00:00]} bxc6 {[%emt 0:00:00]} 16. Bxg7 {[%emt 0:00:00]} Kxg7 {[%emt 0:00:00]} 17. Qc2 {[%emt 0:00:00]} a5 {[%emt 0:00:00]} 18. Nd2 {[%emt 0:00:00]} Nxd2 {[%emt 0:00:00]} 19. Qxd2 {[%emt 0:00:00]} Qb4 {[%emt 0:00:00]} 20. Qc1 {[%emt 0:00:00]} Rac8 {[%emt 0:00:00]} 21. a3 {[%emt 0:00:00]} Qd6 {[%emt 0:00:00]} 22. Qc3+ {[%emt 0:00:00]} f6 {[%emt 0:00:00]} 23. Qxa5 {[%emt 0:00:00]} Ra8 {[%emt 0:00:00]} 24. Qb4 {[%emt 0:00:00]} Qxb4 {[%emt 0:00:00]} 25. axb4 {[%emt 0:00:00]} Rab8 {[%emt 0:00:00]} 26. Rfc1 {[%emt 0:00:00]} Rec8 {[%emt 0:00:00]} 27. Ra1 {[%emt 0:00:00]} Rxb4 {[%emt 0:00:00]} 28. Ra7+ {[%emt 0:00:00]} Kh6 {[%emt 0:00:00]} 29. Rf7 {[%emt 0:00:00]} Rxb3 {[%emt 0:00:00]} 30. h3 {[%emt 0:00:00]} Bf5 {[%emt 0:00:00]} 31. Rxf6 {[%emt 0:00:00]} Rb1 {[%emt 0:00:00]} 32. Rxb1 {[%emt 0:01:11]} Bxb1 {[%emt 0:00:00]} 33. Rf7 {[%emt 0:00:39]} g5 {[%emt 0:00:00]} 34. g4 {[%emt 0:02:48]} Kg6 {[%emt 0:00:00]} 35. Rd7 {[%emt 0:00:50]} Kf6 {[%emt 0:00:00]} 36. f4 {[%emt 0:00:03]} gxf4 {[%emt 0:00:00]} 37. exf4 {[%emt 0:00:02]} h5 {[%emt 0:00:00]} 38. Kf2 {[%emt 0:02:50]} hxg4 {[%emt 0:00:00]} 39. hxg4 {[%emt 0:00:01]} Ke6 {[%emt 0:02:43]} 40. Rb7 {[%emt 0:00:03]} Bc2 {[%emt 0:00:08]} 41. Ke3 {[%emt 0:06:33]} 1/2-1/2

[Event "1000GM Spring IM-C 2024"]
[Site "New York"]
[Date "2024.03.29"]
[Round "4.5"]
[White "Tanenbaum, Zachary"]
[Black "Savanovic, Aleksandar"]
[Result "1/2-1/2"]
[ECO "C50"]
[WhiteElo "2260"]
[BlackElo "2361"]
[Annotator "RC"]
[PlyCount "96"]
[EventDate "2024.03.26"]
[EventType "tourn"]
[EventCountry "USA"]
[SourceTitle "playchess.com"]
[Source "ChessBase"]
[SourceQuality "1"]
[TimeControl "5400+30"]

1. e4 {[%emt 0:29:22]} e5 {[%emt 0:00:18]} 2. Nf3 {[%emt 0:00:08]} Nc6 {[%emt 0:00:09]} 3. Bc4 {[%emt 0:00:01]} Nf6 {[%emt 0:00:14]} 4. d3 {[%emt 0:00:02]} Bc5 {[%emt 0:00:15]} 5. Nc3 {[%emt 0:00:01]} d6 {[%emt 0:00:17]} 6. Na4 {[%emt 0:00:05]} Bb6 {[%emt 0:00:17]} 7. a3 {[%emt 0:00:06]} h6 {[%emt 0:00:56]} 8. h3 {[%emt 0:00:22]} O-O {[%emt 0:00:43]} 9. O-O {[%emt 0:00:22]} Re8 {[%emt 0:01:28]} 10. b4 {[%emt 0:00:14]} Be6 {[%emt 0:01:35]} 11. Bxe6 {[%emt 0:00:15]} Rxe6 {[%emt 0:00:06]} 12. Bb2 {[%emt 0:00:09]} Ne7 {[%emt 0:00:59]} 13. Nh4 {[%emt 0:22:29]} c6 {[%emt 0:10:03]} 14. Nxb6 {[%emt 0:00:13]} Qxb6 {[%emt 0:00:14]} 15. c4 {[%emt 0:16:11]} Ng6 {[%emt 0:07:43]} 16. Nxg6 {[%emt 0:01:15]} fxg6 {[%emt 0:01:19]} 17. c5 {[%emt 0:03:50]} dxc5 {[%emt 0:05:46]} 18. Qb3 {[%emt 0:24:25]} Rae8 {[%emt 0:00:08]} 19. Bxe5 {[%emt 0:00:00]} Kh7 {[%emt 0:00:55]} 20. Bf4 {[%emt 0:00:00]} cxb4 {[%emt 0:00:36]} 21. axb4 {[%emt 0:00:00]} a6 {[%emt 0:00:16]} 22. Qc4 {[%emt 0:00:00]} Qd8 {[%emt 0:01:35]} 23. Rad1 {[%emt 0:00:00]} Qe7 {[%emt 0:07:00]} 24. Bc1 {[%emt 0:00:00]} Re5 {[%emt 0:01:54]} 25. Be3 {[%emt 0:00:00]} Nd7 {[%emt 0:02:13]} 26. f4 {[%emt 0:00:00]} Rb5 {[%emt 0:00:08]} 27. Bd2 {[%emt 0:00:00]} Nb6 {[%emt 0:03:57]} 28. Qd4 {[%emt 0:00:41]} Rd8 {[%emt 0:02:31]} 29. Qe3 {[%emt 0:00:05]} Na4 {[%emt 0:01:24]} 30. d4 {[%emt 0:01:55]} Qd6 {[%emt 0:04:19]} 31. Be1 {[%emt 0:01:09]} Nb2 {[%emt 0:01:45]} 32. Rc1 {[%emt 0:00:10]} Na4 {[%emt 0:00:49]} 33. Rd1 {[%emt 0:01:24]} a5 {[%emt 0:01:38]} 34. Ra1 {[%emt 0:02:01]} Nb6 {[%emt 0:00:38]} 35. bxa5 {[%emt 0:00:27]} Nc4 {[%emt 0:00:09]} 36. Qe2 {[%emt 0:00:31]} Qxd4+ {[%emt 0:00:55]} 37. Bf2 {[%emt 0:00:01]} Qd3 {[%emt 0:00:18]} 38. Qxd3 {[%emt 0:00:16]} Rxd3 {[%emt 0:00:08]} 39. a6 {[%emt 0:00:10]} bxa6 {[%emt 0:01:10]} 40. Rxa6 {[%emt 0:00:11]} Rb2 {[%emt 0:07:39]} 41. Rxc6 {[%emt 0:00:56]} Nd6 {[%emt 0:00:07]} 42. e5 {[%emt 0:01:27]} Ne4 {[%emt 0:00:06]} 43. Rb6 {[%emt 0:00:29]} Ra2 {[%emt 0:00:31]} 44. e6 {[%emt 0:00:32]} Nxf2 {[%emt 0:00:14]} 45. Rxf2 {[%emt 0:00:30]} Rd1+ {[%emt 0:00:06]} 46. Rf1 {[%emt 0:00:01]} Rdd2 {[%emt 0:00:09]} 47. Re1 {[%emt 0:00:59]} Rxg2+ {[%emt 0:00:17]} 48. Kh1 {[%emt 0:00:01]} Rh2+ {[%emt 0:03:56]} 1/2-1/2

[Event "1000GM Spring IM-C 2024"]
[Site "New York"]
[Date "2024.03.30"]
[Round "5.1"]
[White "Savanovic, Aleksandar"]
[Black "Pang, Qi"]
[Result "1-0"]
[ECO "C69"]
[WhiteElo "2361"]
[BlackElo "2195"]
[Annotator "RC"]
[PlyCount "79"]
[EventDate "2024.03.26"]
[EventType "tourn"]
[EventCountry "USA"]
[SourceTitle "playchess.com"]
[Source "ChessBase"]
[SourceQuality "1"]
[TimeControl "5400+30"]

1. e4 {[%emt 0:00:02]} e5 {[%emt 0:00:20]} 2. Nf3 {[%emt 0:00:09]} Nc6 {[%emt 0:00:04]} 3. Bb5 {[%emt 0:00:06]} a6 {[%emt 0:00:05]} 4. Bxc6 {[%emt 0:00:50]} dxc6 {[%emt 0:00:05]} 5. O-O {[%emt 0:00:06]} f6 {[%emt 0:00:21]} 6. d4 {[%emt 0:00:09]} exd4 {[%emt 0:00:03]} 7. Nxd4 {[%emt 0:00:07]} c5 {[%emt 0:00:06]} 8. Nb3 {[%emt 0:00:06]} Qxd1 {[%emt 0:00:15]} 9. Rxd1 {[%emt 0:00:05]} Be6 {[%emt 0:00:38]} 10. Bf4 {[%emt 0:01:31]} c4 {[%emt 0:01:53]} 11. Nd4 {[%emt 0:00:30]} O-O-O {[%emt 0:00:20]} 12. Nc3 {[%emt 0:00:07]} Bf7 {[%emt 0:00:18]} 13. Nf5 {[%emt 0:00:38]} Re8 {[%emt 0:25:58]} 14. Kf1 {[%emt 0:23:25]} g6 {[%emt 0:12:31]} 15. Ne3 {[%emt 0:00:06]} Bc5 {[%emt 0:00:30]} 16. Ned5 {[%emt 0:01:25]} c6 {[%emt 0:14:13]} 17. Nc7 {[%emt 0:04:31]} Re7 {[%emt 0:07:33]} 18. Na4 {[%emt 0:00:20]} Ba7 {[%emt 0:00:38]} 19. Na8 {[%emt 0:00:06]} b5 {[%emt 0:00:36]} 20. N4b6+ {[%emt 0:00:12]} Kb7 {[%emt 0:08:38]} 21. Rd8 {[%emt 1:06:29]} Bxb6 {[%emt 0:00:11]} 22. Rb8+ {[%emt 0:00:00]} Ka7 {[%emt 0:00:03]} 23. Nxb6 {[%emt 0:00:00]} Be6 {[%emt 0:02:34]} 24. Nc8+ {[%emt 0:00:00]} Bxc8 {[%emt 0:00:07]} 25. Rxc8 {[%emt 0:00:00]} g5 {[%emt 0:00:24]} 26. Be3+ {[%emt 0:00:00]} Kb7 {[%emt 0:00:14]} 27. Rf8 {[%emt 0:00:00]} Rd7 {[%emt 0:01:10]} 28. Ke2 {[%emt 0:00:00]} Kc7 {[%emt 0:00:03]} 29. Rd1 {[%emt 0:00:00]} Rxd1 {[%emt 0:00:09]} 30. Kxd1 {[%emt 0:00:00]} Kd6 {[%emt 0:00:29]} 31. b4 {[%emt 0:00:00]} cxb3 {[%emt 0:00:42]} 32. cxb3 {[%emt 0:00:00]} a5 {[%emt 0:00:41]} 33. Kc2 {[%emt 0:00:00]} h5 {[%emt 0:00:21]} 34. f3 {[%emt 0:00:00]} Ke6 {[%emt 0:01:19]} 35. Bb6 {[%emt 0:00:00]} Ke7 {[%emt 0:00:10]} 36. Bc5+ {[%emt 0:00:00]} Ke6 {[%emt 0:00:04]} 37. Kd3 {[%emt 0:00:00]} Kd7 {[%emt 0:00:18]} 38. a3 {[%emt 0:00:00]} Ke6 {[%emt 0:00:08]} 39. g3 {[%emt 0:00:00]} Kd7 {[%emt 0:00:18]} 40. f4 {[%emt 0:00:00]} 1-0

[Event "1000GM Spring IM-C 2024"]
[Site "New York"]
[Date "2024.03.30"]
[Round "5.2"]
[White "Shundi, Matias"]
[Black "Tanenbaum, Zachary"]
[Result "0-1"]
[ECO "C63"]
[WhiteElo "2191"]
[BlackElo "2260"]
[Annotator "RC"]
[PlyCount "124"]
[EventDate "2024.03.26"]
[EventType "tourn"]
[EventCountry "USA"]
[SourceTitle "playchess.com"]
[Source "ChessBase"]
[SourceQuality "1"]
[TimeControl "5400+30"]

1. e4 {[%emt 0:03:43]} e5 {[%emt 0:00:32]} 2. Nf3 {[%emt 0:00:05]} Nc6 {[%emt 0:00:11]} 3. Bb5 {[%emt 0:00:05]} f5 {[%emt 0:00:07]} 4. d3 {[%emt 0:00:05]} fxe4 {[%emt 0:00:06]} 5. dxe4 {[%emt 0:00:05]} Nf6 {[%emt 0:00:06]} 6. O-O {[%emt 0:00:52]} d6 {[%emt 0:00:03]} 7. Bc4 {[%emt 0:00:52]} Bg4 {[%emt 0:00:01]} 8. h3 {[%emt 0:00:55]} Bh5 {[%emt 0:00:06]} 9. Nc3 {[%emt 0:10:59]} Be7 {[%emt 0:00:09]} 10. Be3 {[%emt 0:04:02]} Qd7 {[%emt 0:00:13]} 11. Re1 {[%emt 0:02:32]} h6 {[%emt 0:00:53]} 12. Be2 {[%emt 0:13:22]} Bf7 {[%emt 0:03:12]} 13. Rb1 {[%emt 0:05:26]} O-O {[%emt 0:03:29]} 14. b4 {[%emt 0:04:00]} Be6 {[%emt 0:14:36]} 15. Qc1 {[%emt 0:07:36]} Qe8 {[%emt 0:08:46]} 16. Rd1 {[%emt 0:02:47]} Qf7 {[%emt 0:04:55]} 17. a4 {[%emt 0:04:30]} a5 {[%emt 0:17:52]} 18. b5 {[%emt 0:02:36]} Nb4 {[%emt 0:05:30]} 19. Kh2 {[%emt 0:04:35]} Rfc8 {[%emt 0:09:16]} 20. Rg1 {[%emt 0:04:02]} c6 {[%emt 0:03:21]} 21. b6 {[%emt 0:00:14]} Qg6 {[%emt 0:14:47]} 22. Nh4 {[%emt 0:17:17]} Qh7 {[%emt 0:02:24]} 23. g4 {[%emt 0:00:43]} Nxe4 {[%emt 0:02:49]} 24. Nxe4 {[%emt 0:00:15]} Qxe4 {[%emt 0:00:39]} 25. Nf5 {[%emt 0:01:01]} Bf8 {[%emt 0:01:14]} 26. Rxb4 {[%emt 0:02:05]} Qxb4 {[%emt 0:02:35]} 27. c4 {[%emt 0:04:26]} d5 {[%emt 0:00:36]} 28. c5 {[%emt 0:01:35]} d4 {[%emt 0:02:53]} 29. Bxh6 {[%emt 0:00:22]} d3 {[%emt 0:01:39]} 30. Bxg7 {[%emt 0:03:50]} Bxg7 {[%emt 0:00:58]} 31. Nxg7 {[%emt 0:00:16]} d2 {[%emt 0:00:10]} 32. Qc2 {[%emt 0:00:45]} Kxg7 {[%emt 0:00:38]} 33. g5 {[%emt 0:00:22]} Qf4+ {[%emt 0:00:20]} 34. Rg3 {[%emt 0:00:24]} Qxf2+ {[%emt 0:00:13]} 35. Rg2 {[%emt 0:00:05]} Qf4+ {[%emt 0:00:06]} 36. Kg1 {[%emt 0:00:15]} Bd5 {[%emt 0:00:29]} 37. Bh5 {[%emt 0:00:31]} Qe4 {[%emt 0:02:22]} 38. Qxe4 {[%emt 0:01:04]} d1=Q+ {[%emt 0:00:31]} 39. Bxd1 {[%emt 0:00:10]} Bxe4 {[%emt 0:00:02]} 40. Re2 {[%emt 0:00:25]} Bf3 {[%emt 0:00:23]} 41. Rxe5 {[%emt 0:00:13]} Bxd1 {[%emt 0:00:05]} 42. Re7+ {[%emt 0:00:05]} Kg6 {[%emt 0:00:14]} 43. Rxb7 {[%emt 0:00:03]} Bxa4 {[%emt 0:00:16]} 44. Rd7 {[%emt 0:00:09]} Rd8 {[%emt 0:00:16]} 45. b7 {[%emt 0:00:07]} Rab8 {[%emt 0:00:06]} 46. Rc7 {[%emt 0:00:19]} Rd1+ {[%emt 0:00:07]} 47. Kh2 {[%emt 0:00:06]} Rb1 {[%emt 0:00:09]} 48. Rc8 {[%emt 0:00:21]} R1xb7 {[%emt 0:00:08]} 49. Rxb8 {[%emt 0:00:05]} Rxb8 {[%emt 0:00:03]} 50. Kg3 {[%emt 0:00:06]} Kxg5 {[%emt 0:00:04]} 51. h4+ {[%emt 0:00:04]} Kf5 {[%emt 0:00:04]} 52. h5 {[%emt 0:00:03]} Bc2 {[%emt 0:00:14]} 53. h6 {[%emt 0:00:04]} Kg6 {[%emt 0:00:06]} 54. h7 {[%emt 0:00:04]} Kxh7 {[%emt 0:00:03]} 55. Kf4 {[%emt 0:00:04]} Re8 {[%emt 0:00:04]} 56. Kg5 {[%emt 0:00:03]} Rf8 {[%emt 0:00:07]} 57. Kh5 {[%emt 0:00:05]} a4 {[%emt 0:00:03]} 58. Kg5 {[%emt 0:00:04]} a3 {[%emt 0:00:04]} 59. Kh5 {[%emt 0:00:04]} a2 {[%emt 0:00:04]} 60. Kg5 {[%emt 0:00:03]} a1=Q {[%emt 0:00:09]} 61. Kh5 {[%emt 0:00:19]} Rg8 {[%emt 0:00:18]} 62. Kh4 {[%emt 0:00:06]} Qh1# {[%emt 0:00:05]} 0-1

[Event "1000GM Spring IM-C 2024"]
[Site "New York"]
[Date "2024.03.30"]
[Round "5.3"]
[White "Yudasin, Leonid"]
[Black "Yang, Qindong"]
[Result "1/2-1/2"]
[ECO "B51"]
[WhiteElo "2337"]
[BlackElo "2234"]
[Annotator "RC"]
[PlyCount "38"]
[EventDate "2024.03.26"]
[EventType "tourn"]
[EventCountry "USA"]
[SourceTitle "playchess.com"]
[Source "ChessBase"]
[SourceQuality "1"]
[TimeControl "5400+30"]

1. e4 {[%emt 0:00:02]} c5 {[%emt 0:05:09]} 2. Nf3 {[%emt 0:00:57]} d6 {[%emt 0:00:18]} 3. Bb5+ {[%emt 0:00:50]} Nd7 {[%emt 0:00:24]} 4. d4 {[%emt 0:03:02]} cxd4 {[%emt 0:00:35]} 5. Qxd4 {[%emt 0:00:40]} a6 {[%emt 0:00:13]} 6. Bxd7+ {[%emt 0:01:01]} Bxd7 {[%emt 0:00:05]} 7. c4 {[%emt 0:05:42]} e5 {[%emt 0:02:42]} 8. Qd3 {[%emt 0:00:24]} b5 {[%emt 0:00:19]} 9. Nc3 {[%emt 0:00:22]} bxc4 {[%emt 0:00:32]} 10. Qxc4 {[%emt 0:00:05]} h6 {[%emt 0:02:13]} 11. O-O {[%emt 0:08:15]} Nf6 {[%emt 0:04:27]} 12. Qd3 {[%emt 0:05:34]} Be7 {[%emt 0:02:25]} 13. Nd2 {[%emt 0:03:44]} Be6 {[%emt 0:11:38]} 14. Nc4 {[%emt 0:01:47]} Qc7 {[%emt 0:05:30]} 15. Ne3 {[%emt 0:00:17]} O-O {[%emt 0:01:01]} 16. b3 {[%emt 0:05:07]} Rfc8 {[%emt 0:14:43]} 17. Ncd5 {[%emt 0:10:50]} Nxd5 {[%emt 0:04:45]} 18. Nxd5 {[%emt 0:00:18]} Bxd5 {[%emt 0:01:34]} 19. Qxd5 {[%emt 0:00:18]} Qc6 {[%emt 0:07:00]} 1/2-1/2

[Event "1000GM Spring IM-C 2024"]
[Site "New York"]
[Date "2024.03.30"]
[Round "5.4"]
[White "Andrews, Todd"]
[Black "Tang, Zoey"]
[Result "0-1"]
[ECO "B23"]
[WhiteElo "2160"]
[BlackElo "2253"]
[Annotator "RC"]
[PlyCount "68"]
[EventDate "2024.03.26"]
[EventType "tourn"]
[EventCountry "USA"]
[SourceTitle "playchess.com"]
[Source "ChessBase"]
[SourceQuality "1"]
[TimeControl "5400+30"]

1. e4 {[%emt 0:00:11]} c5 {[%emt 0:00:04]} 2. Nc3 {[%emt 0:00:18]} d6 {[%emt 0:00:40]} 3. Nge2 {[%emt 0:03:16]} Nc6 {[%emt 0:00:24]} 4. d3 {[%emt 0:01:56]} g6 {[%emt 0:02:24]} 5. h3 {[%emt 0:01:22]} Bg7 {[%emt 0:00:59]} 6. g4 {[%emt 0:02:40]} e6 {[%emt 0:02:43]} 7. Bg2 {[%emt 0:00:15]} Nge7 {[%emt 0:00:07]} 8. Be3 {[%emt 0:02:39]} a6 {[%emt 0:04:50]} 9. Qd2 {[%emt 0:02:45]} Nd4 {[%emt 0:02:01]} 10. Nd1 {[%emt 0:06:23]} Qc7 {[%emt 0:03:41]} 11. Ng3 {[%emt 0:02:03]} b5 12. c3 {[%emt 0:00:30]} Ndc6 13. O-O {[%emt 0:00:30]} Bb7 14. d4 {[%emt 0:00:30]} O-O-O 15. b4 {[%emt 0:00:30]} f5 16. a4 {[%emt 0:00:30]} cxd4 17. cxd4 {[%emt 0:00:30]} f4 18. Bxf4 {[%emt 0:00:30]} Nxd4 19. Rc1 {[%emt 0:00:30]} Nec6 20. axb5 {[%emt 0:00:30]} Nxb5 21. Ne3 {[%emt 0:00:30]} Nbd4 22. Bg5 {[%emt 0:00:30]} Rdf8 23. Nd5 {[%emt 0:00:30]} Qf7 24. b5 {[%emt 0:00:30]} axb5 25. Ne7+ {[%emt 0:00:30]} Kd7 26. Nxc6 {[%emt 0:00:30]} Bxc6 27. e5 {[%emt 0:00:30]} Bxe5 28. Qa5 {[%emt 0:00:30]} Rc8 29. Bxc6+ {[%emt 0:00:30]} Nxc6 30. Qxb5 {[%emt 0:00:30]} Qf3 31. Kh2 {[%emt 0:00:30]} Rb8 32. Qa4 {[%emt 0:00:30]} Bxg3+ 33. Kg1 {[%emt 0:00:30]} Be5 34. Rc2 {[%emt 0:00:30]} Rb4 0-1

[Event "1000GM Spring IM-C 2024"]
[Site "New York"]
[Date "2024.03.30"]
[Round "5.5"]
[White "Lekic, Dusan"]
[Black "Atwell, Rose"]
[Result "0-1"]
[ECO "D12"]
[WhiteElo "2320"]
[BlackElo "2285"]
[Annotator "RC"]
[PlyCount "52"]
[EventDate "2024.03.26"]
[EventType "tourn"]
[EventCountry "USA"]
[SourceTitle "playchess.com"]
[Source "ChessBase"]
[SourceQuality "1"]
[TimeControl "5400+30"]

1. d4 {[%emt 0:01:26]} d5 {[%emt 0:00:04]} 2. c4 {[%emt 0:00:08]} c6 {[%emt 0:00:05]} 3. Nf3 {[%emt 0:00:17]} Nf6 {[%emt 0:00:06]} 4. e3 {[%emt 0:00:29]} Bf5 {[%emt 0:01:07]} 5. Nc3 {[%emt 0:00:21]} e6 {[%emt 0:01:01]} 6. Nh4 {[%emt 0:02:15]} Bg6 {[%emt 0:00:04]} 7. Be2 {[%emt 0:01:53]} Nbd7 {[%emt 0:02:37]} 8. Bd2 {[%emt 0:01:43]} Qc7 {[%emt 0:08:19]} 9. h3 {[%emt 0:09:18]} dxc4 {[%emt 0:08:34]} 10. Nxg6 {[%emt 0:01:53]} hxg6 {[%emt 0:00:11]} 11. Bxc4 {[%emt 0:00:09]} Nb6 {[%emt 0:10:02]} 12. Be2 {[%emt 0:03:28]} e5 {[%emt 0:01:33]} 13. dxe5 {[%emt 0:05:56]} Qxe5 {[%emt 0:00:03]} 14. Qb3 {[%emt 0:03:24]} Bd6 {[%emt 0:08:05]} 15. a4 {[%emt 0:07:33]} O-O {[%emt 0:05:00]} 16. a5 {[%emt 0:01:42]} Nbd7 {[%emt 0:00:37]} 17. Bf3 {[%emt 0:12:48]} Nc5 {[%emt 0:12:27]} 18. Qc4 {[%emt 0:02:35]} Rad8 {[%emt 0:00:41]} 19. Ke2 {[%emt 0:05:13]} Bc7 {[%emt 0:02:39]} 20. Rhb1 {[%emt 0:01:44]} Rfe8 {[%emt 0:04:05]} 21. Be1 {[%emt 0:03:28]} Nd3 {[%emt 0:05:27]} 22. a6 {[%emt 0:01:20]} Rd4 {[%emt 0:03:28]} 23. Qa2 {[%emt 0:01:49]} Qh2 {[%emt 0:01:38]} 24. Bd2 {[%emt 0:03:30]} Nf4+ {[%emt 0:04:31]} 25. Kd1 {[%emt 0:00:15]} Qg1+ {[%emt 0:00:22]} 26. Kc2 {[%emt 0:02:11]} Rxd2+ {[%emt 0:00:07]} 0-1

[Event "1000GM Spring IM-C 2024"]
[Site "New York"]
[Date "2024.03.30"]
[Round "6.1"]
[White "Pang, Qi"]
[Black "Atwell, Rose"]
[Result "0-1"]
[ECO "A11"]
[WhiteElo "2195"]
[BlackElo "2285"]
[Annotator "RC"]
[PlyCount "72"]
[EventDate "2024.03.26"]
[EventType "tourn"]
[EventCountry "USA"]
[SourceTitle "playchess.com"]
[Source "ChessBase"]
[SourceQuality "1"]
[TimeControl "5400+30"]

1. Nf3 {[%emt 0:00:53]} d5 {[%emt 0:00:07]} 2. c4 {[%emt 0:01:53]} c6 {[%emt 0:00:34]} 3. e3 {[%emt 0:00:23]} Nf6 {[%emt 0:00:10]} 4. Be2 {[%emt 0:00:07]} Bg4 {[%emt 0:05:42]} 5. O-O {[%emt 0:08:49]} e6 {[%emt 0:05:04]} 6. b3 {[%emt 0:00:26]} Nbd7 {[%emt 0:01:47]} 7. h3 {[%emt 0:02:30]} Bxf3 {[%emt 0:09:48]} 8. Bxf3 {[%emt 0:00:18]} Bd6 {[%emt 0:00:37]} 9. Bb2 {[%emt 0:00:42]} Qe7 {[%emt 0:02:31]} 10. Nc3 {[%emt 0:00:43]} h5 {[%emt 0:06:11]} 11. cxd5 {[%emt 0:10:40]} exd5 {[%emt 0:05:43]} 12. d4 {[%emt 0:01:03]} h4 {[%emt 0:03:50]} 13. e4 {[%emt 0:04:09]} dxe4 {[%emt 0:01:05]} 14. Bxe4 {[%emt 0:01:27]} O-O-O {[%emt 0:16:54]} 15. Re1 {[%emt 0:16:40]} Bc7 {[%emt 0:03:35]} 16. Bxc6 {[%emt 0:13:52]} Qd6 {[%emt 0:00:09]} 17. Bxd7+ {[%emt 0:00:06]} Nxd7 {[%emt 0:03:49]} 18. Kf1 {[%emt 0:01:41]} Qh2 {[%emt 0:03:24]} 19. Qf3 {[%emt 0:01:15]} Rde8 {[%emt 0:03:44]} 20. Re3 {[%emt 0:02:03]} Bf4 {[%emt 0:03:51]} 21. Rc1 {[%emt 0:13:15]} Bxe3 {[%emt 0:00:54]} 22. fxe3 {[%emt 0:00:07]} Kb8 {[%emt 0:01:07]} 23. Ba3 {[%emt 0:00:37]} Re6 {[%emt 0:04:52]} 24. Nd5 {[%emt 0:00:54]} Ra6 {[%emt 0:05:34]} 25. Bb2 {[%emt 0:08:36]} Rxa2 {[%emt 0:01:00]} 26. Rc2 {[%emt 0:00:06]} Rc8 {[%emt 0:01:51]} 27. Qe4 {[%emt 0:01:05]} Rxc2 {[%emt 0:01:37]} 28. Qxc2 {[%emt 0:00:03]} Ra6 {[%emt 0:03:06]} 29. Qh7 {[%emt 0:01:36]} Qd6 {[%emt 0:01:24]} 30. Qxh4 {[%emt 0:00:55]} Rc6 {[%emt 0:00:27]} 31. Qe4 {[%emt 0:05:04]} Nf6 {[%emt 0:00:45]} 32. Nxf6 {[%emt 0:00:08]} Qxf6+ {[%emt 0:00:02]} 33. Kg1 {[%emt 0:00:06]} Re6 {[%emt 0:00:46]} 34. Qd3 {[%emt 0:00:13]} Qg6 {[%emt 0:00:32]} 35. Qc3 {[%emt 0:01:38]} Rc6 {[%emt 0:00:15]} 36. Qb4 {[%emt 0:00:22]} Qb1+ {[%emt 0:00:46]} 0-1

[Event "1000GM Spring IM-C 2024"]
[Site "New York"]
[Date "2024.03.30"]
[Round "6.2"]
[White "Tang, Zoey"]
[Black "Lekic, Dusan"]
[Result "1-0"]
[ECO "D46"]
[WhiteElo "2253"]
[BlackElo "2320"]
[Annotator "RC"]
[PlyCount "58"]
[EventDate "2024.03.26"]
[EventType "tourn"]
[EventCountry "USA"]
[SourceTitle "playchess.com"]
[Source "ChessBase"]
[SourceQuality "1"]
[TimeControl "5400+30"]

1. d4 {[%emt 0:00:03]} Nf6 {[%emt 0:00:28]} 2. c4 {[%emt 0:00:04]} e6 {[%emt 0:00:10]} 3. Nf3 {[%emt 0:00:04]} d5 {[%emt 0:00:19]} 4. Nc3 {[%emt 0:00:04]} c6 {[%emt 0:00:18]} 5. e3 {[%emt 0:00:08]} Nbd7 {[%emt 0:00:29]} 6. Qc2 {[%emt 0:00:10]} Bd6 {[%emt 0:00:50]} 7. Bd3 {[%emt 0:00:30]} O-O {[%emt 0:00:51]} 8. O-O {[%emt 0:00:13]} dxc4 {[%emt 0:00:26]} 9. Bxc4 {[%emt 0:00:05]} b5 {[%emt 0:00:15]} 10. Bd3 {[%emt 0:00:09]} Bb7 {[%emt 0:01:22]} 11. h3 {[%emt 0:11:09]} Rc8 {[%emt 0:05:03]} 12. Ng5 {[%emt 0:02:50]} h6 {[%emt 0:03:17]} 13. Nge4 {[%emt 0:00:29]} Be7 {[%emt 0:02:43]} 14. Rd1 {[%emt 0:01:27]} Nd5 {[%emt 0:06:17]} 15. a3 {[%emt 0:06:02]} a5 {[%emt 0:06:56]} 16. Qe2 {[%emt 0:06:03]} b4 {[%emt 0:10:45]} 17. Na4 {[%emt 0:02:51]} bxa3 {[%emt 0:05:14]} 18. bxa3 {[%emt 0:00:37]} c5 {[%emt 0:01:01]} 19. Bb2 {[%emt 0:11:21]} cxd4 {[%emt 0:03:43]} 20. Bxd4 {[%emt 0:00:34]} Bc6 {[%emt 0:07:22]} 21. Bc2 {[%emt 0:03:18]} Qe8 {[%emt 0:06:52]} 22. f4 {[%emt 0:09:13]} f5 {[%emt 0:03:14]} 23. Nec3 {[%emt 0:05:17]} Bf6 {[%emt 0:03:15]} 24. Nxd5 {[%emt 0:07:27]} Bxd5 {[%emt 0:01:50]} 25. Rac1 {[%emt 0:05:08]} Qe7 {[%emt 0:03:17]} 26. Bxf6 {[%emt 0:07:12]} Qxf6 {[%emt 0:01:16]} 27. Bb1 {[%emt 0:05:14]} Bb3 {[%emt 0:09:35]} 28. Rc3 {[%emt 0:16:48]} Rc6 29. Rxc6 {[%emt 0:00:00]} Rc8 {[%emt 0:00:40]} 1-0